[Event "Czech Open-E Teams 2022"]
[Site "Pardubice"]
[Date "2022.07.15"]
[Round "3.29"]
[White "Slovak, Kilian"]
[Black "Walek, Petr"]
[Result "0-1"]
[ECO "B36"]
[WhiteElo "2321"]
[BlackElo "2237"]
[Annotator "ChessBase"]
[PlyCount "106"]
[EventDate "2022.07.14"]
[EventType "team-tourn"]
[EventCountry "CZE"]
[SourceTitle "playchess.com"]
[Source "ChessBase"]
[SourceQuality "1"]
[TimeControl "5400+30"]

1. e4 {[%emt 0:00:04]} c5 {[%emt 0:00:29]} 2. Nf3 {[%emt 0:00:05]} Nc6 {[%emt 0:00:15]} 3. d4 {[%emt 0:00:13]} cxd4 {[%emt 0:00:06]} 4. Nxd4 {[%emt 0:00:05]} g6 {[%emt 0:00:06]} 5. c4 {[%emt 0:00:07]} Nf6 {[%emt 0:00:08]} 6. Nc3 {[%emt 0:00:18]} d6 {[%emt 0:00:13]} 7. Be2 {[%emt 0:00:43]} Nxd4 {[%emt 0:00:25]} 8. Qxd4 {[%emt 0:00:02]} Bg7 9. Be3 {[%emt 0:00:18]} O-O {[%emt 0:00:20]} 10. Qd2 a5 11. f3 {[%emt 0:04:53]} a4 {[%emt 0:01:45]} 12. Rc1 {[%emt 0:02:28]} Qa5 {[%emt 0:01:57]} 13. Nb5 {[%emt 0:03:17]} Be6 {[%emt 0:26:03]} 14. Qxa5 {[%emt 0:06:45]} Rxa5 {[%emt 0:00:06]} 15. Rc2 {[%emt 0:06:21]} Rc8 {[%emt 0:08:51]} 16. Kd2 {[%emt 0:00:20]} Nd7 {[%emt 0:02:40]} 17. Nd4 {[%emt 0:01:27]} Nc5 {[%emt 0:03:39]} 18. Rb1 {[%emt 0:15:41]} Bd7 {[%emt 0:04:05]} 19. Bd1 {[%emt 0:13:16]} f5 {[%emt 0:06:59]} 20. exf5 {[%emt 0:03:49]} Bxd4 {[%emt 0:03:13]} 21. Bxd4 {[%emt 0:00:01]} Bxf5 {[%emt 0:00:13]} 22. Rbc1 {[%emt 0:02:04]} Bxc2 {[%emt 0:05:26]} 23. Rxc2 {[%emt 0:01:23]} Ne6 {[%emt 0:02:47]} 24. Bb6 {[%emt 0:00:48]} Ra6 {[%emt 0:02:33]} 25. Be3 {[%emt 0:00:10]} Rac6 {[%emt 0:02:01]} 26. Kd3 {[%emt 0:03:16]} Nc5+ {[%emt 0:06:17]} 27. Kd2 {[%emt 0:05:36]} Na6 {[%emt 0:00:21]} 28. b3 {[%emt 0:01:14]} Nb4 {[%emt 0:08:10]} 29. Rb2 {[%emt 0:01:20]} a3 {[%emt 0:01:22]} 30. Rb1 {[%emt 0:00:00]} d5 {[%emt 0:03:01]} 31. Be2 {[%emt 0:01:20]} d4 {[%emt 0:05:36]} 32. Bg5 {[%emt 0:01:16]} Nxa2 {[%emt 0:00:44]} 33. Ra1 {[%emt 0:01:00]} Nc3 {[%emt 0:00:12]} 34. Bd3 {[%emt 0:00:03]} Kf7 {[%emt 0:03:19]} 35. Rxa3 {[%emt 0:00:14]} Ra6 {[%emt 0:00:59]} 36. Rxa6 {[%emt 0:00:38]} bxa6 {[%emt 0:00:01]} 37. f4 {[%emt 0:02:11]} Rb8 {[%emt 0:02:09]} 38. Bc2 {[%emt 0:00:11]} Na2 {[%emt 0:00:27]} 39. Bh4 {[%emt 0:01:18]} Nb4 {[%emt 0:00:32]} 40. Be4 {[%emt 0:00:06]} a5 {[%emt 0:01:58]} 41. Bg3 {[%emt 0:02:18]} Na6 {[%emt 0:00:52]} 42. Bd5+ {[%emt 0:05:54]} e6 43. f5 exd5 {[%emt 0:00:19]} 44. fxg6+ {[%emt 0:00:34]} hxg6 {[%emt 0:00:07]} 45. Bxb8 {[%emt 0:00:03]} Nxb8 {[%emt 0:00:02]} 46. cxd5 {[%emt 0:00:38]} Kf6 {[%emt 0:00:17]} 47. Kd3 {[%emt 0:00:30]} Ke5 {[%emt 0:00:07]} 48. d6 {[%emt 0:00:28]} Nd7 {[%emt 0:01:36]} 49. h4 {[%emt 0:01:26]} Kd5 {[%emt 0:00:34]} 50. g4 {[%emt 0:01:07]} Nc5+ {[%emt 0:01:09]} 51. Kc2 {[%emt 0:00:27]} Kxd6 {[%emt 0:00:15]} 52. h5 {[%emt 0:00:03]} gxh5 {[%emt 0:00:27]} 53. gxh5 {[%emt 0:00:01]} Ke5 {[%emt 0:00:41]} 0-1

[Event "Czech Open-E Teams 2022"]
[Site "Pardubice"]
[Date "2022.07.15"]
[Round "3.30"]
[White "Kratochvil, Vit"]
[Black "Brejnik, Gustav"]
[Result "1-0"]
[ECO "B15"]
[WhiteElo "2237"]
[BlackElo "2292"]
[Annotator "ChessBase"]
[PlyCount "72"]
[EventDate "2022.07.14"]
[EventType "team-tourn"]
[EventCountry "CZE"]
[SourceTitle "playchess.com"]
[Source "ChessBase"]
[SourceQuality "1"]
[TimeControl "5400+30"]

1. e4 {[%emt 0:00:06]} c6 {[%emt 0:00:08]} 2. d4 {[%emt 0:00:34]} d5 {[%emt 0:00:08]} 3. Nc3 {[%emt 0:00:08]} dxe4 {[%emt 0:00:03]} 4. Nxe4 {[%emt 0:00:08]} Nf6 {[%emt 0:00:02]} 5. Nxf6+ {[%emt 0:11:48]} exf6 {[%emt 0:00:30]} 6. c3 {[%emt 0:00:30]} Bd6 {[%emt 0:00:30]} 7. Bd3 {[%emt 0:00:30]} O-O {[%emt 0:00:30]} 8. Qc2 {[%emt 0:00:30]} Re8+ {[%emt 0:00:30]} 9. Ne2 {[%emt 0:00:30]} h5 {[%emt 0:00:30]} 10. Be3 {[%emt 0:00:30]} Nd7 {[%emt 0:00:00]} 11. O-O-O {[%emt 0:00:30]} Nf8 {[%emt 0:00:03]} 12. Kb1 {[%emt 0:00:57]} Be6 {[%emt 0:01:07]} 13. c4 {[%emt 0:02:31]} Rc8 {[%emt 0:00:04]} 14. Nc3 {[%emt 0:05:05]} Bb4 {[%emt 0:00:05]} 15. Ne4 {[%emt 0:05:04]} Be7 {[%emt 0:01:07]} 16. Nc3 {[%emt 0:07:55]} Qa5 {[%emt 0:00:19]} 17. Qa4 {[%emt 0:02:49]} Qxa4 {[%emt 0:00:04]} 18. Nxa4 {[%emt 0:00:05]} Ng6 {[%emt 0:00:16]} 19. h4 Bd6 {[%emt 0:04:08]} 20. Nc3 {[%emt 0:20:59]} Bb4 21. Rc1 {[%emt 0:16:56]} Rcd8 {[%emt 0:10:03]} 22. a3 {[%emt 0:08:14]} Be7 {[%emt 0:03:19]} 23. Be2 f5 {[%emt 0:08:23]} 24. d5 {[%emt 0:12:08]} cxd5 {[%emt 0:01:56]} 25. cxd5 {[%emt 0:00:02]} Bxd5 {[%emt 0:00:16]} 26. Nxd5 {[%emt 0:00:22]} Rxd5 {[%emt 0:00:04]} 27. Rc7 {[%emt 0:02:53]} f4 {[%emt 0:27:33]} 28. Bxa7 {[%emt 0:01:36]} Rd2 {[%emt 0:13:57]} 29. Bc4 {[%emt 0:00:58]} Ne5 {[%emt 0:00:04]} 30. Bb5 {[%emt 0:00:31]} Bd6 {[%emt 0:02:44]} 31. Rxb7 {[%emt 0:00:30]} Re7 {[%emt 0:03:38]} 32. Rxe7 {[%emt 0:00:27]} Bxe7 {[%emt 0:00:01]} 33. Kc1 {[%emt 0:00:38]} Rd5 {[%emt 0:00:21]} 34. a4 {[%emt 0:00:16]} f3 {[%emt 0:05:19]} 35. g3 {[%emt 0:00:39]} Bc5 {[%emt 0:09:50]} 36. Bxc5 {[%emt 0:00:05]} Rxc5+ {[%emt 0:00:01]} 1-0

[Event "Czech Open-E Teams 2022"]
[Site "Pardubice"]
[Date "2022.07.15"]
[Round "3.31"]
[White "Parizek, Vojtech"]
[Black "Ruzicka, Josef"]
[Result "1-0"]
[ECO "B96"]
[WhiteElo "2217"]
[BlackElo "2177"]
[Annotator "ChessBase"]
[PlyCount "112"]
[EventDate "2022.07.14"]
[EventType "team-tourn"]
[EventCountry "CZE"]
[SourceTitle "playchess.com"]
[Source "ChessBase"]
[SourceQuality "1"]
[TimeControl "5400+30"]

1. e4 {[%emt 0:00:02]} c5 {[%emt 0:00:11]} 2. Nf3 {[%emt 0:00:31]} d6 {[%emt 0:00:00]} 3. d4 cxd4 {[%emt 0:00:13]} 4. Nxd4 {[%emt 0:00:15]} Nf6 {[%emt 0:00:06]} 5. Nc3 {[%emt 0:00:05]} a6 {[%emt 0:00:07]} 6. Bg5 {[%emt 0:00:11]} e6 {[%emt 0:00:09]} 7. f4 {[%emt 0:00:07]} Nbd7 {[%emt 0:00:12]} 8. Qe2 {[%emt 0:00:57]} Be7 {[%emt 0:07:17]} 9. O-O-O Qc7 10. g4 {[%emt 0:05:05]} b5 {[%emt 0:01:41]} 11. Bxf6 {[%emt 0:05:27]} Nxf6 {[%emt 0:00:34]} 12. g5 {[%emt 0:00:25]} Nd7 {[%emt 0:00:17]} 13. Bh3 {[%emt 0:02:14]} Nb6 {[%emt 0:11:38]} 14. Qh5 {[%emt 0:11:01]} b4 {[%emt 0:00:45]} 15. Nce2 {[%emt 0:00:20]} g6 {[%emt 0:11:50]} 16. Qh6 {[%emt 0:06:07]} Bf8 {[%emt 0:00:16]} 17. Qh4 {[%emt 0:00:15]} e5 {[%emt 0:04:31]} 18. Nb3 {[%emt 0:09:50]} Bxh3 {[%emt 0:03:37]} 19. Qxh3 {[%emt 0:00:03]} Rc8 {[%emt 0:00:20]} 20. Qd3 {[%emt 0:01:21]} exf4 {[%emt 0:01:34]} 21. Nxf4 {[%emt 0:08:40]} Bg7 {[%emt 0:00:54]} 22. Kb1 {[%emt 0:08:14]} O-O {[%emt 0:01:39]} 23. h4 {[%emt 0:04:23]} Na4 {[%emt 0:23:34]} 24. Nd4 {[%emt 0:12:22]} Nb6 {[%emt 0:27:29]} 25. h5 {[%emt 0:08:18]} Qc4 {[%emt 0:02:40]} 26. hxg6 {[%emt 0:04:37]} fxg6 {[%emt 0:00:03]} 27. Nfe6 {[%emt 0:03:57]} Rf7 {[%emt 0:01:07]} 28. Qh3 {[%emt 0:02:55]} Bxd4 {[%emt 0:00:42]} 29. Nxd4 {[%emt 0:00:09]} Nd7 {[%emt 0:00:44]} 30. Rdf1 {[%emt 0:02:19]} Rcf8 {[%emt 0:00:46]} 31. Rxf7 {[%emt 0:01:01]} Rxf7 {[%emt 0:00:01]} 32. Rd1 {[%emt 0:01:04]} Nc5 {[%emt 0:00:59]} 33. Qe3 {[%emt 0:03:39]} Re7 {[%emt 0:00:29]} 34. Nc6 {[%emt 0:00:57]} Rxe4 {[%emt 0:00:24]} 35. Qf3 {[%emt 0:00:08]} Rf4 {[%emt 0:00:35]} 36. Qh3 {[%emt 0:00:38]} Qf7 {[%emt 0:00:33]} 37. Qc8+ {[%emt 0:00:24]} Kg7 {[%emt 0:00:09]} 38. Qd8 {[%emt 0:00:31]} Ne4 {[%emt 0:00:42]} 39. Qb6 {[%emt 0:00:34]} Rf1 {[%emt 0:00:38]} 40. Qd4+ {[%emt 0:00:09]} Kg8 {[%emt 0:00:21]} 41. Nxb4 {[%emt 0:01:12]} Qf3 {[%emt 0:00:40]} 42. Rc1 {[%emt 0:00:21]} Qh1 {[%emt 0:00:30]} 43. Qc4+ {[%emt 0:00:27]} Kg7 {[%emt 0:00:14]} 44. Rxf1 {[%emt 0:00:37]} Nd2+ {[%emt 0:00:22]} 45. Kc1 {[%emt 0:00:06]} Nxf1 {[%emt 0:00:14]} 46. Qc7+ {[%emt 0:00:23]} Kg8 {[%emt 0:00:52]} 47. Qd8+ {[%emt 0:00:20]} Kg7 {[%emt 0:00:35]} 48. Qf6+ {[%emt 0:00:32]} Kg8 {[%emt 0:00:03]} 49. Qe6+ {[%emt 0:00:29]} Kg7 {[%emt 0:00:15]} 50. Qf6+ {[%emt 0:00:05]} Kg8 {[%emt 0:00:03]} 51. b3 {[%emt 0:01:36]} Ne3+ {[%emt 0:00:43]} 52. Kb2 {[%emt 0:00:29]} Nd1+ {[%emt 0:01:02]} 53. Kc1 {[%emt 0:00:31]} Nc3+ {[%emt 0:00:47]} 54. Kb2 {[%emt 0:00:06]} Nd1+ {[%emt 0:00:03]} 55. Ka3 {[%emt 0:00:29]} Qe4 {[%emt 0:01:15]} 56. Qxd6 {[%emt 0:00:48]} Ne3 {[%emt 0:00:28]} 1-0

[Event "Czech Open-E Teams 2022"]
[Site "Pardubice"]
[Date "2022.07.15"]
[Round "3.32"]
[White "Kosut, Tomas"]
[Black "Dvorak, Jan"]
[Result "1-0"]
[ECO "C00"]
[WhiteElo "1820"]
[BlackElo "2194"]
[Annotator "ChessBase"]
[PlyCount "81"]
[EventDate "2022.07.14"]
[EventType "team-tourn"]
[EventCountry "CZE"]
[SourceTitle "playchess.com"]
[Source "ChessBase"]
[SourceQuality "1"]
[TimeControl "5400+30"]

1. e4 {[%emt 0:00:04]} e6 {[%emt 0:00:09]} 2. d3 {[%emt 0:01:39]} d5 {[%emt 0:00:13]} 3. Nd2 {[%emt 0:00:40]} c5 {[%emt 0:00:37]} 4. Ngf3 {[%emt 0:08:54]} Nc6 {[%emt 0:00:30]} 5. g3 g6 {[%emt 0:04:56]} 6. Bg2 {[%emt 0:01:00]} Bg7 {[%emt 0:00:22]} 7. O-O {[%emt 0:02:20]} Nge7 {[%emt 0:03:32]} 8. Re1 {[%emt 0:05:13]} h6 {[%emt 0:02:48]} 9. h4 {[%emt 0:11:19]} O-O {[%emt 0:03:59]} 10. e5 {[%emt 0:10:33]} Qc7 {[%emt 0:19:11]} 11. Qe2 {[%emt 0:00:55]} b6 {[%emt 0:01:09]} 12. Nf1 {[%emt 0:01:46]} a5 {[%emt 0:03:42]} 13. Bf4 {[%emt 0:07:23]} Ba6 {[%emt 0:07:15]} 14. c3 {[%emt 0:04:35]} b5 {[%emt 0:10:24]} 15. N1h2 {[%emt 0:02:56]} Kh7 {[%emt 0:06:25]} 16. Ng4 {[%emt 0:08:56]} Ng8 {[%emt 0:06:57]} 17. Kh2 {[%emt 0:20:44]} b4 {[%emt 0:09:18]} 18. Rh1 {[%emt 0:03:39]} Qe7 {[%emt 0:06:23]} 19. Kg1 {[%emt 0:01:42]} bxc3 {[%emt 0:04:10]} 20. bxc3 {[%emt 0:00:14]} f5 {[%emt 0:00:27]} 21. exf6 {[%emt 0:00:45]} Nxf6 {[%emt 0:00:09]} 22. Nge5 {[%emt 0:01:41]} Nxe5 {[%emt 0:00:08]} 23. Nxe5 {[%emt 0:00:24]} Nh5 {[%emt 0:04:07]} 24. Nxg6 {[%emt 0:01:01]} Kxg6 {[%emt 0:01:10]} 25. Qg4+ {[%emt 0:00:05]} Kh7 {[%emt 0:00:04]} 26. Qxh5 {[%emt 0:00:06]} Bxd3 {[%emt 0:00:07]} 27. Re1 {[%emt 0:01:13]} Bg6 {[%emt 0:02:01]} 28. Qe2 {[%emt 0:01:38]} Bxc3 {[%emt 0:01:05]} 29. Qxe6 {[%emt 0:00:26]} Qxe6 {[%emt 0:00:05]} 30. Rxe6 {[%emt 0:00:02]} Rad8 {[%emt 0:01:08]} 31. h5 {[%emt 0:00:38]} Bc2 {[%emt 0:01:46]} 32. Rxh6+ {[%emt 0:01:18]} Kg7 {[%emt 0:00:43]} 33. Rc6 Rxf4 {[%emt 0:00:56]} 34. gxf4 {[%emt 0:01:45]} Rd7 {[%emt 0:00:58]} 35. Rxc5 {[%emt 0:01:11]} d4 {[%emt 0:00:05]} 36. Rd5 {[%emt 0:00:37]} Rf7 {[%emt 0:00:34]} 37. h6+ {[%emt 0:00:13]} Kh7 {[%emt 0:00:05]} 38. Rh4 {[%emt 0:00:50]} Bf5 {[%emt 0:00:28]} 39. Rh5 {[%emt 0:00:55]} Bg6 {[%emt 0:00:26]} 40. Rh3 {[%emt 0:00:33]} Bf5 {[%emt 0:00:35]} 41. Rxf5 {[%emt 0:00:22]} 1-0

[Event "Czech Open-E Teams 2022"]
[Site "Pardubice"]
[Date "2022.07.15"]
[Round "3.33"]
[White "Vylicil, Adam"]
[Black "Petr, Martin"]
[Result "0-1"]
[ECO "A48"]
[WhiteElo "1890"]
[BlackElo "2500"]
[Annotator "ChessBase"]
[PlyCount "72"]
[EventDate "2022.07.14"]
[EventType "team-tourn"]
[EventCountry "CZE"]
[SourceTitle "playchess.com"]
[Source "ChessBase"]
[SourceQuality "1"]
[TimeControl "5400+30"]

1. d4 {[%emt 0:00:03]} Nf6 {[%emt 0:00:58]} 2. Nf3 {[%emt 0:00:42]} g6 {[%emt 0:01:43]} 3. Bg5 {[%emt 0:01:09]} Bg7 {[%emt 0:00:14]} 4. Nbd2 {[%emt 0:00:06]} h6 {[%emt 0:04:32]} 5. Bh4 {[%emt 0:02:23]} d6 {[%emt 0:02:30]} 6. e4 {[%emt 0:04:41]} Nh5 {[%emt 0:01:28]} 7. c3 {[%emt 0:02:18]} g5 {[%emt 0:01:09]} 8. Bg3 {[%emt 0:00:39]} e6 {[%emt 0:03:29]} 9. Be2 {[%emt 0:03:24]} Qe7 {[%emt 0:01:32]} 10. Nc4 {[%emt 0:09:17]} Nd7 {[%emt 0:02:52]} 11. Qd2 {[%emt 0:17:18]} b6 {[%emt 0:07:56]} 12. e5 {[%emt 0:09:55]} Nxg3 {[%emt 0:00:51]} 13. hxg3 {[%emt 0:00:12]} Bb7 {[%emt 0:00:17]} 14. exd6 {[%emt 0:02:50]} cxd6 {[%emt 0:00:59]} 15. Ne3 {[%emt 0:04:55]} Nf6 {[%emt 0:02:14]} 16. Bb5+ {[%emt 0:01:05]} Kf8 {[%emt 0:00:05]} 17. Bd3 {[%emt 0:03:26]} Rc8 {[%emt 0:05:54]} 18. Kf1 {[%emt 0:05:36]} Bc6 {[%emt 0:04:33]} 19. Qe2 {[%emt 0:04:54]} Qc7 {[%emt 0:01:10]} 20. Re1 {[%emt 0:02:54]} Rb8 {[%emt 0:05:06]} 21. Bb5 {[%emt 0:02:02]} Bb7 {[%emt 0:04:35]} 22. Bd3 {[%emt 0:05:26]} Nd5 {[%emt 0:04:20]} 23. Nd1 {[%emt 0:04:42]} Bc6 {[%emt 0:03:26]} 24. Bb5 {[%emt 0:01:22]} Rc8 {[%emt 0:01:08]} 25. Ba6 {[%emt 0:01:30]} Re8 {[%emt 0:01:36]} 26. Bb5 {[%emt 0:03:01]} Bxb5 {[%emt 0:00:20]} 27. Qxb5 {[%emt 0:00:12]} Rc8 {[%emt 0:00:01]} 28. Ne3 {[%emt 0:01:42]} Nxe3+ {[%emt 0:01:30]} 29. Rxe3 {[%emt 0:00:13]} Qc4+ {[%emt 0:01:13]} 30. Qxc4 {[%emt 0:00:11]} Rxc4 {[%emt 0:00:02]} 31. b3 {[%emt 0:02:32]} Rc7 {[%emt 0:00:10]} 32. g4 {[%emt 0:01:01]} Ke7 {[%emt 0:00:42]} 33. Ke2 {[%emt 0:00:43]} b5 {[%emt 0:00:49]} 34. Kd2 {[%emt 0:00:59]} Rhc8 {[%emt 0:00:36]} 35. Rc1 {[%emt 0:03:24]} h5 {[%emt 0:02:42]} 36. Nh2 {[%emt 0:01:05]} Bxd4 {[%emt 0:00:24]} 0-1

[Event "Czech Open-E Teams 2022"]
[Site "Pardubice"]
[Date "2022.07.15"]
[Round "3.34"]
[White "Neuman, Petr"]
[Black "Sudrich, Radek"]
[Result "1-0"]
[ECO "C45"]
[WhiteElo "2378"]
[BlackElo "2049"]
[Annotator "ChessBase"]
[PlyCount "103"]
[EventDate "2022.07.14"]
[EventType "team-tourn"]
[EventCountry "CZE"]
[SourceTitle "playchess.com"]
[Source "ChessBase"]
[SourceQuality "1"]
[TimeControl "5400+30"]

1. e4 {[%emt 0:00:03]} e5 {[%emt 0:00:13]} 2. Nf3 {[%emt 0:00:08]} Nc6 {[%emt 0:00:07]} 3. d4 {[%emt 0:00:28]} exd4 {[%emt 0:00:11]} 4. Nxd4 {[%emt 0:00:03]} Bc5 {[%emt 0:00:14]} 5. Nb3 {[%emt 0:00:29]} Be7 {[%emt 0:02:15]} 6. Nc3 {[%emt 0:00:15]} Nf6 {[%emt 0:00:35]} 7. g3 {[%emt 0:04:27]} d6 {[%emt 0:01:30]} 8. Bg2 {[%emt 0:00:09]} O-O {[%emt 0:02:02]} 9. O-O {[%emt 0:00:03]} Be6 {[%emt 0:05:10]} 10. h3 {[%emt 0:01:17]} Nd7 {[%emt 0:04:02]} 11. Nd5 {[%emt 0:02:58]} Nb6 {[%emt 0:04:31]} 12. a4 {[%emt 0:04:11]} Re8 {[%emt 0:10:18]} 13. a5 {[%emt 0:09:06]} Nd7 {[%emt 0:01:09]} 14. c3 {[%emt 0:02:53]} a6 {[%emt 0:03:12]} 15. Ne3 {[%emt 0:02:41]} Nde5 {[%emt 0:06:49]} 16. f4 {[%emt 0:03:16]} Nc4 {[%emt 0:00:47]} 17. Nf5 {[%emt 0:02:07]} Bf8 {[%emt 0:02:22]} 18. Nfd4 {[%emt 0:03:04]} Bd7 {[%emt 0:04:01]} 19. Nxc6 {[%emt 0:04:48]} Bxc6 {[%emt 0:00:43]} 20. Re1 {[%emt 0:00:07]} b6 {[%emt 0:02:28]} 21. axb6 {[%emt 0:01:14]} cxb6 {[%emt 0:00:46]} 22. Nd4 {[%emt 0:00:56]} Bb7 {[%emt 0:00:36]} 23. b3 {[%emt 0:04:45]} Na5 {[%emt 0:00:40]} 24. Ba3 {[%emt 0:00:10]} g6 {[%emt 0:02:09]} 25. Qd3 {[%emt 0:00:50]} Rc8 {[%emt 0:03:57]} 26. c4 {[%emt 0:00:46]} Nc6 {[%emt 0:05:07]} 27. Bb2 {[%emt 0:01:13]} Qf6 {[%emt 0:04:13]} 28. Rab1 {[%emt 0:02:00]} Nxd4 {[%emt 0:00:08]} 29. Bxd4 {[%emt 0:00:10]} Qd8 {[%emt 0:00:06]} 30. Rbd1 {[%emt 0:00:59]} Qc7 {[%emt 0:02:32]} 31. Bb2 {[%emt 0:00:58]} Be7 {[%emt 0:00:58]} 32. Kh2 {[%emt 0:01:33]} Qc5 {[%emt 0:02:06]} 33. Rd2 {[%emt 0:04:13]} b5 {[%emt 0:01:16]} 34. Rc1 {[%emt 0:00:17]} b4 {[%emt 0:01:24]} 35. Bd4 {[%emt 0:01:36]} Qc7 {[%emt 0:00:39]} 36. Ba1 {[%emt 0:00:23]} Qc5 {[%emt 0:01:28]} 37. Qb1 {[%emt 0:00:15]} f6 {[%emt 0:02:52]} 38. Rcd1 {[%emt 0:02:26]} Rcd8 {[%emt 0:01:20]} 39. Bd4 {[%emt 0:00:19]} Qc7 {[%emt 0:00:34]} 40. h4 {[%emt 0:02:38]} Kf7 {[%emt 0:01:13]} 41. Qb2 {[%emt 0:01:46]} h6 {[%emt 0:02:35]} 42. Re1 {[%emt 0:00:27]} g5 {[%emt 0:01:55]} 43. Rf2 {[%emt 0:03:13]} gxh4 {[%emt 0:01:41]} 44. gxh4 {[%emt 0:00:05]} Rg8 {[%emt 0:00:25]} 45. Qe2 {[%emt 0:00:10]} Kg6 {[%emt 0:02:50]} 46. Bh3 {[%emt 0:01:17]} Bc8 {[%emt 0:00:24]} 47. Bf5+ {[%emt 0:00:15]} Kg7 {[%emt 0:01:51]} 48. Rg1+ {[%emt 0:01:09]} Kf8 {[%emt 0:00:32]} 49. Rxg8+ {[%emt 0:00:45]} Kxg8 {[%emt 0:00:01]} 50. Rg2+ {[%emt 0:00:39]} Kf8 {[%emt 0:00:03]} 51. Qg4 {[%emt 0:00:16]} Bxf5 {[%emt 0:00:11]} 52. Qg8# {[%emt 0:00:08]} 1-0

[Event "Czech Open-E Teams 2022"]
[Site "Pardubice"]
[Date "2022.07.15"]
[Round "3.35"]
[White "Bacak, Petr ml."]
[Black "Wasserbauer, Radek"]
[Result "1/2-1/2"]
[ECO "B01"]
[WhiteElo "1973"]
[BlackElo "2164"]
[Annotator "ChessBase"]
[PlyCount "44"]
[EventDate "2022.07.14"]
[EventType "team-tourn"]
[EventCountry "CZE"]
[SourceTitle "playchess.com"]
[Source "ChessBase"]
[SourceQuality "1"]
[TimeControl "5400+30"]

1. e4 {[%emt 0:00:02]} d5 {[%emt 0:00:04]} 2. exd5 {[%emt 0:00:07]} Qxd5 {[%emt 0:00:03]} 3. Nc3 {[%emt 0:00:09]} Qa5 {[%emt 0:00:02]} 4. Bc4 {[%emt 0:00:57]} Nf6 {[%emt 0:00:22]} 5. d3 {[%emt 0:00:47]} c6 {[%emt 0:01:41]} 6. Bd2 {[%emt 0:02:00]} Bf5 {[%emt 0:00:11]} 7. Nge2 {[%emt 0:02:26]} e6 {[%emt 0:00:08]} 8. Ng3 {[%emt 0:09:18]} Bg6 {[%emt 0:01:53]} 9. Nd5 {[%emt 0:02:25]} Qd8 {[%emt 0:00:07]} 10. Nxf6+ {[%emt 0:00:08]} Qxf6 {[%emt 0:00:05]} 11. Bc3 {[%emt 0:01:30]} Qh4 {[%emt 0:08:58]} 12. a4 {[%emt 0:07:22]} Nd7 {[%emt 0:00:38]} 13. a5 {[%emt 0:00:54]} e5 {[%emt 0:00:49]} 14. Qf3 {[%emt 0:01:45]} Rc8 {[%emt 0:06:05]} 15. O-O {[%emt 0:02:45]} Bd6 {[%emt 0:00:13]} 16. Nf5 {[%emt 0:05:44]} Bxf5 {[%emt 0:09:59]} 17. Qxf5 {[%emt 0:00:02]} Qf6 {[%emt 0:00:06]} 18. Qxf6 {[%emt 0:01:30]} gxf6 {[%emt 0:00:04]} 19. Rfe1 {[%emt 0:03:06]} O-O {[%emt 0:08:57]} 20. d4 {[%emt 0:02:34]} Rfe8 {[%emt 0:05:25]} 21. Bd3 {[%emt 0:03:23]} Nf8 {[%emt 0:02:59]} 22. g3 {[%emt 0:04:21]} Rcd8 {[%emt 0:02:38]} 1/2-1/2

[Event "Czech Open-E Teams 2022"]
[Site "Pardubice"]
[Date "2022.07.15"]
[Round "3.36"]
[White "Urban, Tomas"]
[Black "Bacak, Petr st."]
[Result "1-0"]
[ECO "D04"]
[WhiteElo "1815"]
[BlackElo "1903"]
[Annotator "ChessBase"]
[PlyCount "73"]
[EventDate "2022.07.14"]
[EventType "team-tourn"]
[EventCountry "CZE"]
[SourceTitle "playchess.com"]
[Source "ChessBase"]
[SourceQuality "1"]
[TimeControl "5400+30"]

1. d4 {[%emt 0:00:00]} d5 {[%emt 0:00:39]} 2. Nf3 {[%emt 0:00:14]} Nf6 {[%emt 0:01:25]} 3. e3 {[%emt 0:00:06]} Nbd7 {[%emt 0:02:44]} 4. Bd3 {[%emt 0:00:36]} e6 {[%emt 0:01:58]} 5. Nbd2 {[%emt 0:00:23]} c6 {[%emt 0:03:26]} 6. O-O {[%emt 0:00:26]} Qc7 {[%emt 0:03:25]} 7. Re1 {[%emt 0:01:23]} Be7 {[%emt 0:02:07]} 8. c3 {[%emt 0:01:18]} O-O {[%emt 0:03:02]} 9. e4 {[%emt 0:00:21]} dxe4 {[%emt 0:08:27]} 10. Nxe4 {[%emt 0:00:38]} h6 {[%emt 0:12:36]} 11. Nxf6+ {[%emt 0:05:46]} Bxf6 {[%emt 0:04:00]} 12. Qe2 {[%emt 0:03:06]} Re8 {[%emt 0:04:43]} 13. Qe4 {[%emt 0:01:30]} Nf8 {[%emt 0:00:33]} 14. Bf4 {[%emt 0:02:45]} Qd8 {[%emt 0:07:35]} 15. Rad1 {[%emt 0:02:42]} Qd5 {[%emt 0:02:35]} 16. Qe2 {[%emt 0:20:00]} Bd7 {[%emt 0:05:11]} 17. Ne5 {[%emt 0:09:30]} Rad8 {[%emt 0:09:59]} 18. Ng4 {[%emt 0:02:38]} Bg5 {[%emt 0:03:43]} 19. Bc7 {[%emt 0:02:12]} f5 {[%emt 0:07:04]} 20. Bc4 {[%emt 0:10:49]} Qe4 {[%emt 0:02:04]} 21. Qxe4 {[%emt 0:00:12]} fxe4 {[%emt 0:00:06]} 22. Bxd8 {[%emt 0:00:07]} Rxd8 {[%emt 0:02:53]} 23. Rxe4 {[%emt 0:00:20]} b5 {[%emt 0:01:25]} 24. Bb3 {[%emt 0:00:25]} Bc8 {[%emt 0:00:53]} 25. h4 {[%emt 0:02:22]} Be7 {[%emt 0:01:24]} 26. Rde1 {[%emt 0:01:53]} Rd6 {[%emt 0:01:27]} 27. Ne3 {[%emt 0:00:43]} Bd8 {[%emt 0:02:46]} 28. Nf5 {[%emt 0:05:31]} Rd5 {[%emt 0:01:26]} 29. Bxd5 {[%emt 0:03:18]} cxd5 {[%emt 0:01:19]} 30. R4e3 {[%emt 0:01:13]} Bd7 {[%emt 0:01:19]} 31. Ng3 {[%emt 0:00:52]} Bxh4 {[%emt 0:00:08]} 32. Nh5 {[%emt 0:01:52]} Bg5 {[%emt 0:00:55]} 33. f4 {[%emt 0:03:45]} Bh4 {[%emt 0:00:10]} 34. g3 {[%emt 0:01:28]} Bd8 {[%emt 0:00:09]} 35. f5 {[%emt 0:00:12]} exf5 {[%emt 0:00:46]} 36. Re5 {[%emt 0:01:11]} Bc7 {[%emt 0:02:44]} 37. Re7 {[%emt 0:00:52]} 1-0